[Event "*** Monthly 3|2 Blitz Masters"]
[Site "Chess.com"]
[Date "2014.11.25"]
[Round "3"]
[White "Mvpag"]
[Black "bsmail"]
[Result "1-0"]
[WhiteElo "1888"]
[BlackElo "2089"]
[TimeControl "180+2"]
[EndTime "11:32:25 PST"]
[Termination "Mvpag won by resignation"]

1. d4 {[%clk 0:02:53.2]} 1... Nf6 {[%clk 0:02:58.5]} 2. Nf3 {[%clk 0:02:54.7]}
2... d5 {[%clk 0:02:58.3]} 3. c4 {[%clk 0:02:55.5]} 3... e6 {[%clk 0:02:59.2]}
4. Nc3 {[%clk 0:02:56.4]} 4... Bb4 {[%clk 0:02:59.8]} 5. a3 {[%clk 0:02:52.6]}
5... Bxc3+ {[%clk 0:03:00]} 6. bxc3 {[%clk 0:02:53.8]} 6... c5 {[%clk
0:02:59.2]} 7. cxd5 {[%clk 0:02:53.7]} 7... Nxd5 {[%clk 0:02:59.5]} 8. Qc2
{[%clk 0:02:51.5]} 8... O-O {[%clk 0:02:45.7]} 9. e4 {[%clk 0:02:50.4]} 9... Ne7
{[%clk 0:02:46.4]} 10. g3 {[%clk 0:02:42.8]} 10... b6 {[%clk 0:02:44.4]} 11. Bg2
{[%clk 0:02:43.4]} 11... Bb7 {[%clk 0:02:45.8]} 12. O-O {[%clk 0:02:44.3]} 12...
Nd7 {[%clk 0:02:47]} 13. Bg5 {[%clk 0:02:42.3]} 13... h6 {[%clk 0:02:47.1]} 14.
Bf4 {[%clk 0:02:39.3]} 14... Nf6 {[%clk 0:02:45.6]} 15. Rfe1 {[%clk 0:02:36.9]}
15... Rc8 {[%clk 0:02:44.8]} 16. Qa4 {[%clk 0:02:32.7]} 16... Bxe4 {[%clk
0:02:28]} 17. dxc5 {[%clk 0:02:24.3]} 17... Bc6 {[%clk 0:02:19]} 18. Qxa7 {[%clk
0:02:19.4]} 18... bxc5 {[%clk 0:02:20.1]} 19. Rad1 {[%clk 0:02:13.3]} 19... Qe8
{[%clk 0:02:00.5]} 20. Bd6 {[%clk 0:02:07.1]} 20... Ned5 {[%clk 0:01:50.2]} 21.
Bxf8 {[%clk 0:02:02.8]} 21... Qxf8 {[%clk 0:01:52.1]} 22. Qa6 {[%clk 0:01:29]}
22... Nxc3 {[%clk 0:01:46.8]} 23. Rc1 {[%clk 0:01:28.7]} 23... Ncd5 {[%clk
0:01:39.6]} 24. Ne5 {[%clk 0:01:23.2]} 24... Ba8 {[%clk 0:01:18.3]} 25. Red1
{[%clk 0:01:09]} 25... Qe8 {[%clk 0:00:58.1]} 26. Qa7 {[%clk 0:01:05.7]} 26...
Qf8 {[%clk 0:00:44.4]} 27. Rc4 {[%clk 0:00:54.7]} 27... Ne8 {[%clk 0:00:24.9]}
28. Rdc1 {[%clk 0:00:39.2]} 28... f6 {[%clk 0:00:07.7]} 29. Ng6 {[%clk
0:00:29.5]} 29... Qd6 {[%clk 0:00:08.7]} 30. Rxc5 {[%clk 0:00:27.9]} 30... Rxc5
{[%clk 0:00:09.9]} 31. Qxc5 {[%clk 0:00:28.9]} 31... Qxc5 {[%clk 0:00:09.4]} 32.
Rxc5 {[%clk 0:00:30]} 32... Kf7 {[%clk 0:00:10.9]} 33. Nf4 {[%clk 0:00:28.2]}
33... Nec7 {[%clk 0:00:10.3]} 34. Nxd5 {[%clk 0:00:28.5]} 34... Nxd5 {[%clk
0:00:10.2]} 35. Bxd5 {[%clk 0:00:29.6]} 35... Bxd5 {[%clk 0:00:11.8]} 36. a4
{[%clk 0:00:31]} 36... Ke7 {[%clk 0:00:12.6]} 37. a5 {[%clk 0:00:32.3]} 37...
Kd6 {[%clk 0:00:14.1]} 38. Rc1 {[%clk 0:00:32.3]} 38... g5 {[%clk 0:00:13.1]}
39. a6 {[%clk 0:00:33.4]} 39... f5 {[%clk 0:00:13.3]} 40. a7 {[%clk 0:00:34.1]}
40... e5 {[%clk 0:00:10.9]} 41. Rc8 {[%clk 0:00:34.4]} 1-0

[Event "*** Monthly 3|2 Blitz Masters"]
[Site "Chess.com"]
[Date "2014.11.25"]
[Round "3"]
[White "RitvarsReimanis"]
[Black "ameet100"]
[Result "0-1"]
[WhiteElo "2248"]
[BlackElo "2432"]
[TimeControl "180+2"]
[EndTime "11:32:31 PST"]
[Termination "ameet100 won by resignation"]

1. d4 {[%clk 0:02:58.2]} 1... d6 {[%clk 0:02:58.5]} 2. Nf3 {[%clk 0:02:58.7]}
2... g6 {[%clk 0:03:00]} 3. g3 {[%clk 0:02:58.1]} 3... Bg7 {[%clk 0:02:59]} 4.
Bg2 {[%clk 0:03:00]} 4... Nf6 {[%clk 0:03:00.2]} 5. O-O {[%clk 0:03:01.1]} 5...
O-O {[%clk 0:03:01.2]} 6. Nbd2 {[%clk 0:03:02.2]} 6... Nbd7 {[%clk 0:03:01.1]}
7. a4 {[%clk 0:03:01.6]} 7... a5 {[%clk 0:03:01.3]} 8. Nc4 {[%clk 0:03:01.9]}
8... b6 {[%clk 0:03:01.6]} 9. Nfe5 {[%clk 0:03:00.4]} 9... d5 {[%clk 0:02:42.4]}
10. Nc6 {[%clk 0:02:47.3]} 10... Qe8 {[%clk 0:02:42.4]} 11. N4e5 {[%clk
0:02:44]} 11... Bb7 {[%clk 0:02:41.5]} 12. c4 {[%clk 0:02:34]} 12... Nxe5 {[%clk
0:02:28.7]} 13. dxe5 {[%clk 0:02:14.9]} 13... Qxc6 {[%clk 0:02:29.1]} 14. exf6
{[%clk 0:02:12.6]} 14... Qxf6 {[%clk 0:02:30.1]} 15. cxd5 {[%clk 0:02:12.6]}
15... Rfd8 {[%clk 0:02:25.9]} 16. Qb3 {[%clk 0:02:04.3]} 16... Ba6 {[%clk
0:01:56.4]} 17. Re1 {[%clk 0:01:57.8]} 17... Qd4 {[%clk 0:01:55]} 18. Qc2 {[%clk
0:01:44.5]} 18... Rac8 {[%clk 0:01:40]} 19. Ra3 {[%clk 0:01:38.3]} 19... Qb4
{[%clk 0:01:32.6]} 20. Rd1 {[%clk 0:01:31.4]} 20... Bb7 {[%clk 0:01:20.6]} 21.
h4 {[%clk 0:01:25]} 21... Bf6 {[%clk 0:01:00.7]} 22. h5 {[%clk 0:01:23.8]} 22...
Rd6 {[%clk 0:00:56.5]} 23. hxg6 {[%clk 0:01:19.8]} 23... hxg6 {[%clk 0:00:57.2]}
24. Ra2 {[%clk 0:01:07.6]} 24... Rcd8 {[%clk 0:00:48.7]} 25. Bd2 {[%clk
0:01:07.2]} 25... Qg4 {[%clk 0:00:46.1]} 26. Bf3 {[%clk 0:01:06]} 26... Qh3
{[%clk 0:00:44.7]} 27. e4 {[%clk 0:00:56.6]} 27... Be5 {[%clk 0:00:39.8]} 28.
Bg2 {[%clk 0:00:42.6]} 28... Qg4 {[%clk 0:00:40]} 29. Re1 {[%clk 0:00:43.5]}
29... Bd4 {[%clk 0:00:37.7]} 30. Be3 {[%clk 0:00:43.5]} 30... Bxe3 {[%clk
0:00:37.7]} 31. Rxe3 {[%clk 0:00:45.4]} 31... c6 {[%clk 0:00:34.7]} 32. Bf3
{[%clk 0:00:31.8]} 32... Qg5 {[%clk 0:00:28.9]} 33. e5 {[%clk 0:00:30.5]} 33...
Rxd5 {[%clk 0:00:30.3]} 34. Bxd5 {[%clk 0:00:30.7]} 34... Rxd5 {[%clk 0:00:32]}
35. f4 {[%clk 0:00:30.1]} 35... Qh5 {[%clk 0:00:30.6]} 36. e6 {[%clk 0:00:21.9]}
36... Rd1+ {[%clk 0:00:25.7]} 37. Kg2 {[%clk 0:00:16.6]} 37... c5+ {[%clk
0:00:26.5]} 38. Re4 {[%clk 0:00:17.9]} 38... f5 {[%clk 0:00:26.7]} 39. Kf2
{[%clk 0:00:16.2]} 0-1

[Event "*** Monthly 3|2 Blitz Masters"]
[Site "Chess.com"]
[Date "2014.11.25"]
[Round "3"]
[White "esr44"]
[Black "FrankieJay"]
[Result "0-1"]
[WhiteElo "2056"]
[BlackElo "2177"]
[TimeControl "180+2"]
[EndTime "11:33:16 PST"]
[Termination "FrankieJay won by resignation"]

1. d4 {[%clk 0:03:00]} 1... d5 {[%clk 0:02:57.3]} 2. c4 {[%clk 0:02:59.4]} 2...
c6 {[%clk 0:02:58.7]} 3. Nf3 {[%clk 0:03:00.1]} 3... Nf6 {[%clk 0:03:00]} 4. Nc3
{[%clk 0:03:01.8]} 4... a6 {[%clk 0:03:01.1]} 5. e3 {[%clk 0:03:02.8]} 5... b5
{[%clk 0:03:02.2]} 6. b3 {[%clk 0:03:03.8]} 6... Bg4 {[%clk 0:03:03.1]} 7. h3
{[%clk 0:03:05]} 7... Bh5 {[%clk 0:03:01.5]} 8. g4 {[%clk 0:03:05.5]} 8... Bg6
{[%clk 0:03:02.4]} 9. Ne5 {[%clk 0:03:07.2]} 9... e6 {[%clk 0:02:58.8]} 10. Bd2
{[%clk 0:03:05.6]} 10... Bb4 {[%clk 0:02:48.2]} 11. Nxg6 {[%clk 0:02:54.8]}
11... hxg6 {[%clk 0:02:48.9]} 12. Bg2 {[%clk 0:02:56.5]} 12... Nbd7 {[%clk
0:02:45.8]} 13. Qc2 {[%clk 0:02:53.3]} 13... Rc8 {[%clk 0:02:40.8]} 14. O-O-O
{[%clk 0:02:52.9]} 14... bxc4 {[%clk 0:02:30.8]} 15. bxc4 {[%clk 0:02:53.5]}
15... Ba3+ {[%clk 0:02:28.1]} 16. Kb1 {[%clk 0:02:52.4]} 16... Rb8+ {[%clk
0:02:29.3]} 17. Ka1 {[%clk 0:02:53.1]} 17... Bb2+ {[%clk 0:02:29.5]} 18. Qxb2
{[%clk 0:02:53.1]} 18... Rxb2 {[%clk 0:02:30]} 19. Kxb2 {[%clk 0:02:55]} 19...
dxc4 {[%clk 0:02:25.1]} 20. Kc2 {[%clk 0:02:44.2]} 20... Nd5 {[%clk 0:02:25.2]}
21. Rb1 {[%clk 0:02:39.7]} 21... O-O {[%clk 0:02:23.2]} 22. Rb7 {[%clk
0:02:29.6]} 22... N7b6 {[%clk 0:01:57.5]} 23. Rb1 {[%clk 0:02:24.6]} 23... Nxc3
{[%clk 0:01:29.2]} 24. Bxc3 {[%clk 0:02:19.3]} 24... Nd5 {[%clk 0:01:30.3]} 25.
Be1 {[%clk 0:01:30.9]} 25... f5 {[%clk 0:00:52.4]} 26. gxf5 {[%clk 0:01:24.2]}
26... gxf5 {[%clk 0:00:52.4]} 27. Bf1 {[%clk 0:00:45.5]} 27... c3 {[%clk
0:00:43]} 28. Bc4 {[%clk 0:00:32.3]} 28... Qa5 {[%clk 0:00:39]} 29. Bxd5 {[%clk
0:00:28.1]} 29... cxd5 {[%clk 0:00:37.4]} 30. Bxc3 {[%clk 0:00:25.8]} 30...
Qxa2+ {[%clk 0:00:38]} 31. R1b2 {[%clk 0:00:26]} 31... Qc4 {[%clk 0:00:39.2]}
32. Kd2 {[%clk 0:00:19.3]} 32... Rc8 {[%clk 0:00:38.9]} 33. R2b3 {[%clk
0:00:16.5]} 33... Qf1 {[%clk 0:00:38.4]} 34. Rb8 {[%clk 0:00:13.3]} 34... Qxf2+
{[%clk 0:00:37.8]} 35. Kd3 {[%clk 0:00:14.8]} 35... Qf1+ {[%clk 0:00:36.7]} 36.
Kd2 {[%clk 0:00:16.1]} 36... Rxb8 {[%clk 0:00:35.6]} 37. Rxb8+ {[%clk
0:00:16.5]} 37... Kh7 {[%clk 0:00:37.2]} 38. Ra8 {[%clk 0:00:11.4]} 38... Qxh3
{[%clk 0:00:28.8]} 39. Rxa6 {[%clk 0:00:12]} 39... Qg2+ {[%clk 0:00:30.1]} 40.
Ke1 {[%clk 0:00:07.6]} 40... g5 {[%clk 0:00:27.3]} 41. Rxe6 {[%clk 0:00:07.6]}
41... g4 {[%clk 0:00:26.2]} 42. Bb4 {[%clk 0:00:04.6]} 42... g3 {[%clk
0:00:26.1]} 43. Bd6 {[%clk 0:00:04.9]} 43... Qf2+ {[%clk 0:00:26.8]} 44. Kd1
{[%clk 0:00:06.4]} 44... g2 {[%clk 0:00:28]} 45. Re7+ {[%clk 0:00:06.2]} 45...
Kg6 {[%clk 0:00:28.8]} 46. Re6+ {[%clk 0:00:04.2]} 46... Kf7 {[%clk 0:00:30.2]}
47. Re7+ {[%clk 0:00:05.7]} 47... Kf6 {[%clk 0:00:31.7]} 0-1

[Event "*** Monthly 3|2 Blitz Masters"]
[Site "Chess.com"]
[Date "2014.11.25"]
[Round "3"]
[White "josiwales"]
[Black "Philofive"]
[Result "1-0"]
[WhiteElo "1815"]
[BlackElo "2212"]
[TimeControl "180+2"]
[EndTime "11:33:23 PST"]
[Termination "josiwales won by resignation"]

1. e4 {[%clk 0:03:00]} 1... e6 {[%clk 0:02:58.3]} 2. d3 {[%clk 0:03:00.8]} 2...
d5 {[%clk 0:02:59.5]} 3. Qe2 {[%clk 0:03:02.1]} 3... Nf6 {[%clk 0:03:00]} 4. Nf3
{[%clk 0:03:02.7]} 4... b6 {[%clk 0:03:00.2]} 5. e5 {[%clk 0:03:01.2]} 5... Nfd7
{[%clk 0:02:59.5]} 6. g3 {[%clk 0:03:02.2]} 6... c5 {[%clk 0:03:00.8]} 7. Bg2
{[%clk 0:03:03.4]} 7... Nc6 {[%clk 0:03:02.3]} 8. O-O {[%clk 0:03:04]} 8... Qc7
{[%clk 0:03:03.8]} 9. Bf4 {[%clk 0:03:01]} 9... Be7 {[%clk 0:03:00.7]} 10. h4
{[%clk 0:03:00.3]} 10... Bb7 {[%clk 0:03:01.1]} 11. c4 {[%clk 0:02:55.3]} 11...
dxc4 {[%clk 0:02:56.6]} 12. dxc4 {[%clk 0:02:56]} 12... O-O-O {[%clk 0:02:48.1]}
13. Nc3 {[%clk 0:02:56.3]} 13... a6 {[%clk 0:02:48.8]} 14. Rad1 {[%clk
0:02:54.6]} 14... h6 {[%clk 0:02:49.2]} 15. Ne4 {[%clk 0:02:55.4]} 15... Nf8
{[%clk 0:02:38.4]} 16. Nd6+ {[%clk 0:02:51.8]} 16... Kb8 {[%clk 0:02:30.2]} 17.
Nxf7 {[%clk 0:02:50]} 17... Rxd1 {[%clk 0:02:30.1]} 18. Rxd1 {[%clk 0:02:51]}
18... Rg8 {[%clk 0:02:31.6]} 19. Nd6 {[%clk 0:02:51.1]} 19... Ba8 {[%clk
0:02:28.7]} 20. h5 {[%clk 0:02:51.2]} 20... Nh7 {[%clk 0:02:22.8]} 21. Qc2
{[%clk 0:02:41.2]} 21... Ng5 {[%clk 0:02:22.7]} 22. Bxg5 {[%clk 0:02:35.7]}
22... hxg5 {[%clk 0:02:21.1]} 23. Qh7 {[%clk 0:02:36]} 23... Qd8 {[%clk
0:02:15.4]} 24. Rd2 {[%clk 0:02:27]} 24... g4 {[%clk 0:02:11.6]} 25. Ne1 {[%clk
0:01:55.7]} 25... Rh8 {[%clk 0:01:32.4]} 26. Qe4 {[%clk 0:01:34.8]} 26... Rxh5
{[%clk 0:01:30.8]} 27. Qxg4 {[%clk 0:01:22.3]} 27... Rxe5 {[%clk 0:00:57.9]} 28.
Ne4 {[%clk 0:01:19.2]} 28... Nd4 {[%clk 0:00:49.2]} 29. Nd3 {[%clk 0:01:09.9]}
29... Rf5 {[%clk 0:00:36.2]} 30. Nf4 {[%clk 0:00:48.9]} 30... Qg8 {[%clk
0:00:30.2]} 31. Ng6 {[%clk 0:00:39.6]} 31... Bf8 {[%clk 0:00:21.5]} 32. Nxf8
{[%clk 0:00:35.9]} 32... Qxf8 {[%clk 0:00:21.9]} 33. Qd1 {[%clk 0:00:18.8]}
33... Qf7 {[%clk 0:00:22.9]} 34. Nd6 {[%clk 0:00:17.8]} 34... Qf6 {[%clk
0:00:21.4]} 35. Nxf5 {[%clk 0:00:18.9]} 35... Qxf5 {[%clk 0:00:22.4]} 36. Bxa8
{[%clk 0:00:19.4]} 36... Kxa8 {[%clk 0:00:23.7]} 37. Rd3 {[%clk 0:00:18.6]}
37... e5 {[%clk 0:00:23.5]} 38. Re3 {[%clk 0:00:18.9]} 38... g5 {[%clk
0:00:18.7]} 39. Qd3 {[%clk 0:00:19.9]} 39... Qxd3 {[%clk 0:00:11.1]} 40. Rxd3
{[%clk 0:00:21.1]} 40... Kb7 {[%clk 0:00:12.5]} 41. Re3 {[%clk 0:00:21.9]} 41...
Nc6 {[%clk 0:00:13.8]} 42. Kg2 {[%clk 0:00:21.7]} 42... Kc7 {[%clk 0:00:15.4]}
43. Kf3 {[%clk 0:00:22.7]} 43... Kd6 {[%clk 0:00:17]} 44. Ke4 {[%clk 0:00:23.5]}
44... Ke6 {[%clk 0:00:18.2]} 45. g4 {[%clk 0:00:22.9]} 45... Nd4 {[%clk
0:00:18.7]} 46. Rh3 {[%clk 0:00:24.1]} 46... Nc2 {[%clk 0:00:16.2]} 47. Rh6+
{[%clk 0:00:25.1]} 47... Kf7 {[%clk 0:00:17.9]} 48. Kxe5 {[%clk 0:00:25.2]}
48... Nb4 {[%clk 0:00:19.1]} 49. Rxb6 {[%clk 0:00:25.6]} 49... Nd3+ {[%clk
0:00:20.6]} 50. Kf5 {[%clk 0:00:26.2]} 50... Nxf2 {[%clk 0:00:21.9]} 51. Rb7+
{[%clk 0:00:27.4]} 51... Ke8 {[%clk 0:00:22.1]} 52. Kxg5 {[%clk 0:00:28.6]}
52... Ne4+ {[%clk 0:00:23.4]} 53. Kf5 {[%clk 0:00:29.9]} 53... Nd2 {[%clk
0:00:25]} 54. Ke6 {[%clk 0:00:30]} 54... Kd8 {[%clk 0:00:25.8]} 55. Rd7+ {[%clk
0:00:30.1]} 55... Kc8 {[%clk 0:00:26.6]} 56. Rxd2 {[%clk 0:00:31.5]} 1-0

[Event "*** Monthly 3|2 Blitz Masters"]
[Site "Chess.com"]
[Date "2014.11.25"]
[Round "3"]
[White "GMHess"]
[Black "Sebastian"]
[Result "1-0"]
[WhiteElo "2450"]
[BlackElo "2518"]
[TimeControl "180+2"]
[EndTime "11:33:42 PST"]
[Termination "GMHess won by resignation"]

1. b3 {[%clk 0:03:01.2]} 1... c5 {[%clk 0:02:57.3]} 2. Bb2 {[%clk 0:02:59.4]}
2... Nc6 {[%clk 0:02:58.9]} 3. Nf3 {[%clk 0:02:58.5]} 3... d6 {[%clk 0:02:59.9]}
4. e3 {[%clk 0:02:55.4]} 4... e5 {[%clk 0:02:58.3]} 5. Bb5 {[%clk 0:02:54.9]}
5... Ne7 {[%clk 0:02:53.3]} 6. d4 {[%clk 0:02:53.5]} 6... cxd4 {[%clk
0:02:48.4]} 7. exd4 {[%clk 0:02:51.9]} 7... e4 {[%clk 0:02:49.3]} 8. Nfd2 {[%clk
0:02:50.1]} 8... d5 {[%clk 0:02:50.2]} 9. O-O {[%clk 0:02:44.2]} 9... a6 {[%clk
0:02:50.4]} 10. Bxc6+ {[%clk 0:02:33.8]} 10... Nxc6 {[%clk 0:02:43.1]} 11. c4
{[%clk 0:02:28.8]} 11... Bb4 {[%clk 0:02:20.9]} 12. cxd5 {[%clk 0:02:04.4]}
12... Qxd5 {[%clk 0:02:20.5]} 13. Nc4 {[%clk 0:02:00.5]} 13... Qg5 {[%clk
0:02:07.6]} 14. Qe2 {[%clk 0:01:44]} 14... O-O {[%clk 0:02:03.2]} 15. Qxe4
{[%clk 0:01:28.5]} 15... Be6 {[%clk 0:02:03]} 16. Qe3 {[%clk 0:01:20.3]} 16...
Qg6 {[%clk 0:02:00.4]} 17. Nbd2 {[%clk 0:01:14.7]} 17... Bd5 {[%clk 0:01:59.8]}
18. Qg3 {[%clk 0:00:46.8]} 18... Rad8 {[%clk 0:02:00.4]} 19. Qxg6 {[%clk
0:00:34.2]} 19... hxg6 {[%clk 0:02:01.8]} 20. Rfd1 {[%clk 0:00:34.9]} 20... Rfe8
{[%clk 0:02:01.8]} 21. Ne3 {[%clk 0:00:32.9]} 21... Ne7 {[%clk 0:01:52.9]} 22.
Ndc4 {[%clk 0:00:29.1]} 22... b5 {[%clk 0:01:44.2]} 23. Nxd5 {[%clk 0:00:29.7]}
23... Nxd5 {[%clk 0:01:44.6]} 24. Ne5 {[%clk 0:00:31.4]} 24... Nc3 {[%clk
0:01:37]} 25. Rd3 {[%clk 0:00:26.4]} 25... Ne2+ {[%clk 0:01:33.8]} 26. Kf1
{[%clk 0:00:27.1]} 26... Rxe5 {[%clk 0:01:35.5]} 27. a3 {[%clk 0:00:18.8]} 27...
Ba5 {[%clk 0:01:26]} 28. b4 {[%clk 0:00:15.2]} 28... Nf4 {[%clk 0:01:27]} 29.
Rf3 {[%clk 0:00:12.2]} 29... Re4 {[%clk 0:01:28.1]} 30. bxa5 {[%clk 0:00:12.8]}
30... Ne6 {[%clk 0:01:29.4]} 31. Re3 {[%clk 0:00:12.8]} 31... Rh4 {[%clk
0:01:28.9]} 32. h3 {[%clk 0:00:12.4]} 32... Rh5 {[%clk 0:01:29]} 33. Rd1 {[%clk
0:00:13.6]} 33... Rhd5 {[%clk 0:01:29.3]} 34. Re4 {[%clk 0:00:13.6]} 34... g5
{[%clk 0:01:30]} 35. g3 {[%clk 0:00:13.9]} 35... R8d6 {[%clk 0:01:31]} 36. Ke2
{[%clk 0:00:14.7]} 36... f6 {[%clk 0:01:32.4]} 37. Kf3 {[%clk 0:00:14.5]} 37...
Kf7 {[%clk 0:01:33.8]} 38. Rde1 {[%clk 0:00:14.6]} 38... Rc6 {[%clk 0:01:32.1]}
39. Kg2 {[%clk 0:00:14.4]} 39... Rd7 {[%clk 0:01:33.1]} 40. Bc3 {[%clk
0:00:14.3]} 40... Nc7 {[%clk 0:01:33.4]} 41. Bb4 {[%clk 0:00:14.9]} 41... Nd5
{[%clk 0:01:34.7]} 42. Bc5 {[%clk 0:00:16]} 42... Rd8 {[%clk 0:01:34.1]} 43. h4
{[%clk 0:00:15.5]} 43... gxh4 {[%clk 0:01:34.6]} 44. Rxh4 {[%clk 0:00:17.4]}
44... Nc7 {[%clk 0:01:34.7]} 45. Re7+ {[%clk 0:00:17.1]} 45... Kg8 {[%clk
0:01:34.2]} 46. Bb6 {[%clk 0:00:15.7]} 46... Rc8 {[%clk 0:01:35.2]} 47. Rd7
{[%clk 0:00:16.3]} 47... Ne8 {[%clk 0:01:33.1]} 48. d5 {[%clk 0:00:17.1]} 48...
Rd6 {[%clk 0:01:34.6]} 49. Rxd6 {[%clk 0:00:17.2]} 49... Nxd6 {[%clk 0:01:35.6]}
50. a4 {[%clk 0:00:18.6]} 50... Kf7 {[%clk 0:01:34.1]} 51. axb5 {[%clk
0:00:19.7]} 51... Nxb5 {[%clk 0:01:35.8]} 52. Re4 {[%clk 0:00:20.5]} 52... Re8
{[%clk 0:01:31.1]} 53. Rc4 {[%clk 0:00:19.3]} 53... Re5 {[%clk 0:01:32.1]} 54.
Rc8 {[%clk 0:00:19.3]} 54... Rxd5 {[%clk 0:01:31.7]} 55. Ra8 {[%clk 0:00:20.9]}
55... Re5 {[%clk 0:01:28.6]} 56. Rxa6 {[%clk 0:00:21.7]} 56... Re8 {[%clk
0:01:29.6]} 57. Bc5 {[%clk 0:00:22.2]} 57... Rc8 {[%clk 0:01:30.5]} 58. Be3
{[%clk 0:00:23]} 58... Ke7 {[%clk 0:01:29.7]} 59. Rb6 {[%clk 0:00:23.6]} 59...
Nc7 {[%clk 0:01:31]} 60. a6 {[%clk 0:00:23.9]} 60... Ra8 {[%clk 0:01:32.3]} 61.
Rb7 {[%clk 0:00:24.4]} 61... Kd8 {[%clk 0:01:33.3]} 62. Bb6 {[%clk 0:00:24.5]}
62... Rxa6 {[%clk 0:01:31.8]} 63. Bxc7+ {[%clk 0:00:25.8]} 63... Kc8 {[%clk
0:01:33.3]} 64. Rb6 {[%clk 0:00:27.5]} 64... Ra7 {[%clk 0:01:31.9]} 65. Bf4
{[%clk 0:00:28.3]} 65... Kd7 {[%clk 0:01:33.4]} 66. Be3 {[%clk 0:00:28.2]} 66...
Rc7 {[%clk 0:01:33.9]} 67. Ra6 {[%clk 0:00:29.4]} 67... Ke8 {[%clk 0:01:31.4]}
68. Ra7 {[%clk 0:00:31.3]} 68... Rxa7 {[%clk 0:01:30.8]} 69. Bxa7 {[%clk
0:00:33.2]} 69... Kf7 {[%clk 0:01:32.2]} 70. Kf3 {[%clk 0:00:34.8]} 70... f5
{[%clk 0:01:33.4]} 71. Kf4 {[%clk 0:00:36.2]} 71... Kf6 {[%clk 0:01:34.8]} 72.
Bd4+ {[%clk 0:00:36.3]} 72... Kg6 {[%clk 0:01:36.2]} 73. Bxg7 {[%clk 0:00:38]}
1-0

[Event "*** Monthly 3|2 Blitz Masters"]
[Site "Chess.com"]
[Date "2014.11.25"]
[Round "3"]
[White "pedromartinez91"]
[Black "Quinten94"]
[Result "0-1"]
[WhiteElo "2057"]
[BlackElo "2102"]
[TimeControl "180+2"]
[EndTime "11:34:11 PST"]
[Termination "Quinten94 won by resignation"]

1. e4 {[%clk 0:03:00]} 1... c6 {[%clk 0:02:58.8]} 2. d4 {[%clk 0:03:00.5]} 2...
d5 {[%clk 0:03:00.5]} 3. Nd2 {[%clk 0:03:02.1]} 3... dxe4 {[%clk 0:03:01.9]} 4.
Nxe4 {[%clk 0:03:03.5]} 4... Bf5 {[%clk 0:03:03.6]} 5. Ng3 {[%clk 0:03:04.6]}
5... Bg6 {[%clk 0:03:05.3]} 6. h4 {[%clk 0:03:06.2]} 6... h6 {[%clk 0:03:06.7]}
7. Nf3 {[%clk 0:03:07.7]} 7... e6 {[%clk 0:03:08.2]} 8. h5 {[%clk 0:03:09]} 8...
Bh7 {[%clk 0:03:09.8]} 9. Bd3 {[%clk 0:03:10.1]} 9... Bxd3 {[%clk 0:03:11.5]}
10. Qxd3 {[%clk 0:03:11.7]} 10... Nf6 {[%clk 0:03:13.3]} 11. Bd2 {[%clk
0:03:13.2]} 11... Be7 {[%clk 0:03:15]} 12. Ne4 {[%clk 0:03:14.7]} 12... Nxe4
{[%clk 0:02:58.2]} 13. Qxe4 {[%clk 0:03:15.6]} 13... Qd5 {[%clk 0:02:49.6]} 14.
Qe2 {[%clk 0:03:14.7]} 14... Qb5 {[%clk 0:02:39.8]} 15. c4 {[%clk 0:03:09.4]}
15... Qxb2 {[%clk 0:02:36.5]} 16. O-O {[%clk 0:03:09.9]} 16... Qb6 {[%clk
0:02:37.8]} 17. d5 {[%clk 0:03:10.7]} 17... cxd5 {[%clk 0:02:38]} 18. cxd5
{[%clk 0:03:11.6]} 18... O-O {[%clk 0:02:36.2]} 19. Rab1 {[%clk 0:03:12.4]}
19... Qa6 {[%clk 0:02:26.3]} 20. Qxa6 {[%clk 0:03:07.7]} 20... Nxa6 {[%clk
0:02:27.3]} 21. Rxb7 {[%clk 0:03:08.4]} 21... Bf6 {[%clk 0:02:27.1]} 22. dxe6
{[%clk 0:03:08.9]} 22... fxe6 {[%clk 0:02:28.3]} 23. Be3 {[%clk 0:03:09.4]}
23... Rf7 {[%clk 0:02:26]} 24. Rfb1 {[%clk 0:03:09.3]} 24... Rxb7 {[%clk
0:02:08.8]} 25. Rxb7 {[%clk 0:03:09.3]} 25... Rb8 {[%clk 0:02:04.1]} 26. Rxb8+
{[%clk 0:03:09.4]} 26... Nxb8 {[%clk 0:02:04.8]} 27. Bxa7 {[%clk 0:03:11]} 27...
Nc6 {[%clk 0:02:02.4]} 28. Bb6 {[%clk 0:03:11.9]} 28... Kf7 {[%clk 0:02:03.7]}
29. a4 {[%clk 0:03:12.5]} 29... Ke8 {[%clk 0:02:03.7]} 30. Kf1 {[%clk
0:03:04.7]} 30... Kd7 {[%clk 0:02:04.4]} 31. Ke2 {[%clk 0:03:04.9]} 31... Nb4
{[%clk 0:02:03.9]} 32. Nd4 {[%clk 0:03:00.9]} 32... Nd5 {[%clk 0:01:53.5]} 33.
Bc5 {[%clk 0:02:51.4]} 33... Nc3+ {[%clk 0:01:53.9]} 34. Kd3 {[%clk 0:02:48.9]}
34... Nxa4 {[%clk 0:01:55.3]} 35. Bf8 {[%clk 0:02:39]} 35... Nb2+ {[%clk
0:01:52.5]} 36. Ke4 {[%clk 0:02:38.1]} 36... Nd1 {[%clk 0:01:49.9]} 37. f4
{[%clk 0:02:31.6]} 37... Nf2+ {[%clk 0:01:50.5]} 38. Ke3 {[%clk 0:02:30.3]}
38... Ng4+ {[%clk 0:01:47.7]} 39. Kf3 {[%clk 0:02:30.8]} 39... Nh2+ {[%clk
0:01:34.1]} 40. Ke4 {[%clk 0:02:28.1]} 40... Ng4 {[%clk 0:01:29.7]} 41. Nf3
{[%clk 0:02:25.1]} 41... Ke8 {[%clk 0:01:28.9]} 42. Bd6 {[%clk 0:02:22.3]} 42...
Bb2 {[%clk 0:01:17.3]} 43. Be5 {[%clk 0:02:22]} 43... Bxe5 {[%clk 0:01:13.9]}
44. Nxe5 {[%clk 0:02:22.7]} 44... Nf6+ {[%clk 0:01:14.8]} 45. Kf3 {[%clk
0:02:17.5]} 45... Nxh5 {[%clk 0:01:15.9]} 46. g4 {[%clk 0:02:18.3]} 46... Nf6
{[%clk 0:01:15.4]} 47. g5 {[%clk 0:02:19.6]} 47... hxg5 {[%clk 0:01:07.1]} 48.
fxg5 {[%clk 0:02:20.8]} 48... Nd5 {[%clk 0:01:08]} 49. Kg4 {[%clk 0:02:21.4]}
49... Ke7 {[%clk 0:01:06.7]} 50. Kh5 {[%clk 0:02:22.4]} 50... Nf4+ {[%clk
0:01:02.4]} 51. Kg4 {[%clk 0:02:23.4]} 51... Nd5 {[%clk 0:00:59.5]} 52. Kh5
{[%clk 0:02:24.2]} 52... Kf8 {[%clk 0:00:58.7]} 53. Kg6 {[%clk 0:02:24.5]} 53...
Kg8 {[%clk 0:00:58.2]} 54. Kh5 {[%clk 0:02:23.5]} 54... Kh7 {[%clk 0:00:56.3]}
55. Kg4 {[%clk 0:02:22.2]} 55... Ne7 {[%clk 0:00:56.4]} 56. Nd3 {[%clk
0:02:16.9]} 56... Kg6 {[%clk 0:00:53.8]} 57. Nc5 {[%clk 0:02:14.9]} 57... Kf7
{[%clk 0:00:54]} 58. Nd7 {[%clk 0:02:13.8]} 58... Nc6 {[%clk 0:00:52.1]} 59. Kh5
{[%clk 0:02:11.8]} 59... Ke7 {[%clk 0:00:48]} 60. Nc5 {[%clk 0:02:09.4]} 60...
Ne5 {[%clk 0:00:49.6]} 61. Kh4 {[%clk 0:02:05.6]} 61... Kd6 {[%clk 0:00:45.8]}
62. Nb7+ {[%clk 0:02:06.5]} 62... Kd5 {[%clk 0:00:41.3]} 63. Nd8 {[%clk
0:02:07]} 63... Ng6+ {[%clk 0:00:38.1]} 64. Kh5 {[%clk 0:02:07.4]} 64... Ne7
{[%clk 0:00:35.1]} 65. Kg4 {[%clk 0:01:51.3]} 65... e5 {[%clk 0:00:34.4]} 66.
Nf7 {[%clk 0:01:50.9]} 66... e4 {[%clk 0:00:33]} 67. Kf4 {[%clk 0:01:49.8]}
67... Ng6+ {[%clk 0:00:26.2]} 68. Kf5 {[%clk 0:01:51]} 68... e3 {[%clk
0:00:21.2]} 69. Kxg6 {[%clk 0:01:51.8]} 69... e2 {[%clk 0:00:22.9]} 70. Kxg7
{[%clk 0:01:53.2]} 70... e1=Q {[%clk 0:00:23.8]} 71. g6 {[%clk 0:01:54.8]} 71...
Ke6 {[%clk 0:00:24.1]} 72. Kg8 {[%clk 0:01:50.2]} 72... Kf6 {[%clk 0:00:22.2]}
73. Nh8 {[%clk 0:01:32.8]} 73... Qe8+ {[%clk 0:00:19.8]} 74. Kh7 {[%clk
0:01:33.6]} 74... Qf8 {[%clk 0:00:21.3]} 75. g7 {[%clk 0:01:27.1]} 0-1